bitfinex-derivatives/quotes_ETHF0:USTF0_20250701
["timestamp","ask_amount","ask_price","bid_price","bid_amount"]
[1751400445648,0.83031,2408.4,2408.3,42.19223]
[1751400445944,0.83031,2408.4,2408.3,41.3619]
[1751400446248,0.83031,2408.4,2408.3,42.19224]
[1751400447248,0.83031,2408.4,2408.3,41.3619]
[1751400447449,0.83031,2408.4,2408.3,42.19224]
[1751400447744,0.83031,2408.4,2408.3,0.6739]
[1751400447951,0.83031,2408.4,2408.3,12.961]
[1751400448247,0.83031,2408.4,2408.3,40.675]
[1751400448939,0.83031,2408.5,2408.4,0.83028]
[1751400449145,3.8883,2408.6,2408.5,0.83027]
[1751400449342,3.8883,2408.6,2408.5,28.53827]
[1751400449549,1.0379,2408.6,2408.5,28.53827]
[1751400450751,1.86799,2408.8,2408.7,0.8302]
[1751400450953,1.86799,2408.8,2408.7,28.5312]
[1751400451156,0.83019,2408.8,2408.7,27.701]
[1751400451353,0.83019,2408.8,2408.7,28.5312]
[1751400451554,0.83019,2408.8,2408.7,27.701]
[1751400451756,0.83019,2408.8,2408.7,28.5312]
[1751400452362,0.83019,2408.8,2408.7,27.701]
[1751400452958,2.07542,2408.9,2408.4,0.7084]
[1751400453159,2.07543,2408.8,2408.5,40.586]
[1751400453355,0.83027,2408.5,2408.4,1.53868]
[1751400453555,0.83027,2408.5,2408.4,42.12271]
[1751400453961,0.83021,2408.7,2408.6,0.8302]
[1751400454260,0.83021,2408.7,2408.6,28.5142]
[1751400454851,0.83021,2408.7,2408.6,27.684]
[1751400455459,0.83021,2408.7,2408.6,28.51424]
[1751400455659,0.83021,2408.7,2408.6,27.684]
[1751400456258,0.83021,2408.7,2408.6,28.51424]
[1751400456563,0.83021,2408.7,2408.6,27.684]
[1751400456861,4.15097,2408.9,2408.5,0.83024]
[1751400456862,0.83024,2408.6,2408.5,0.83024]
[1751400457063,0.83024,2408.6,2408.5,42.82364]
[1751400457763,0.83022,2408.7,2408.6,0.83021]
[1751400458060,0.83022,2408.7,2408.6,2.25661]
[1751400458456,0.83022,2408.7,2408.6,2.97311]
[1751400459163,0.83022,2408.7,2408.6,2.1429]
[1751400459458,0.83022,2408.7,2408.6,0.7165]
[1751400459660,0.83022,2408.7,2408.6,41.2765]
[1751400461064,0.83022,2408.7,2408.6,0.7165]
[1751400461366,0.83027,2408.5,2408.4,0.7084]
[1751400461752,0.83027,2408.5,2408.4,12.896]
[1751400461957,0.83027,2408.5,2408.4,40.543]
[1751400462161,2.20327,2408.5,2408.4,40.543]
[1751400462462,3.30387259,2408.5,2408.4,40.543]
[1751400462663,0.83037,2408.2,2408.1,0.83041]
[1751400462965,0.83041,2408.1,2408.0,2.18332]
[1751400463167,0.83041,2408.1,2408.0,42.72132]
[1751400463966,0.83039,2408.2,2408.1,0.83039]
[1751400465765,0.83039,2408.2,2408.1,41.36039]
[1751400466366,0.83039,2408.2,2408.1,40.53]
[1751400466566,0.83041,2408.1,2408.0,0.6648]
[1751400466766,0.83041,2408.1,2408.0,41.1878]
[1751400467567,0.83041,2408.1,2408.0,42.01824]
[1751400468770,0.83041,2408.2,2408.1,0.8304]
[1751400469069,0.83035,2408.3,2408.2,0.83035]
[1751400469371,1.93189722,2408.3,2408.2,28.44735]
[1751400469767,0.83035,2408.3,2408.2,28.44735]
[1751400469961,0.7123,2408.6,2408.2,27.617]
[1751400470166,1.10192076,2408.5,2408.4,3.91903709]
[1751400470368,1.10192076,2408.5,2408.4,31.52903709]
[1751400470867,0.83021,2408.7,2408.6,0.83024]
[1751400471068,0.83021,2408.7,2408.6,44.42296709]
[1751400471269,1.932169,2408.7,2408.6,44.42296709]
[1751400471467,1.932169,2408.7,2408.6,41.33424]
[1751400472362,1.932169,2408.7,2408.6,40.504]
[1751400472768,1.101959,2408.7,2408.6,41.33424]
[1751400472970,1.932159,2408.7,2408.6,41.1633]
[1751400473672,1.932159,2408.7,2408.6,41.99354]
[1751400473972,1.932159,2408.7,2408.6,41.1633]
[1751400474571,1.932159,2408.7,2408.6,41.1513]
[1751400474972,1.932159,2408.7,2408.6,40.492]
[1751400475277,0.83031,2408.4,2408.3,3.78442709]
[1751400475572,0.83031,2408.4,2408.3,40.48]
[1751400476169,0.83031,2408.4,2408.3,12.896]
[1751400476376,0.83031,2408.4,2408.3,40.478]
[1751400477274,0.83031,2408.4,2408.3,13.72634]
[1751400477576,0.83031,2408.4,2408.3,41.30634]
[1751400477775,0.83031,2408.4,2408.3,42.72164]
[1751400478669,0.83031,2408.4,2408.3,40.476]
[1751400480676,0.83031,2408.4,2408.3,41.30634]
[1751400480978,1.8682,2408.5,2408.4,0.83031]
[1751400481180,1.0379,2408.5,2408.4,5.29843709]
[1751400481574,1.86817,2408.5,2408.4,5.29843709]
[1751400482282,1.0379,2408.5,2408.4,5.29843709]
[1751400484576,2.8495,2409.0,2408.5,0.83027]
[1751400484774,2.8495,2409.0,2408.9,3.91885709]
[1751400484979,3.95917381,2409.0,2408.9,104.08285709]
[1751400485578,3.95917381,2409.0,2408.9,105.51285709]
[1751400485978,1.42151704,2409.0,2408.9,110.51285709]
[1751400486279,0.83001,2409.3,2409.2,0.83002]
[1751400486579,1.93942728,2409.3,2409.2,31.45074709]
[1751400487380,1.93941728,2409.3,2409.2,30.62072709]
[1751400487580,1.93941728,2409.3,2409.2,31.45075709]
[1751400488083,1.93941728,2409.3,2409.2,27.532]
[1751400488472,0.83006,2409.1,2409.0,3.08872709]
[1751400488677,0.83006,2409.1,2409.0,13.5227]
[1751400488880,0.8301,2409.0,2408.9,72.624]
[1751400489185,3.24712273,2409.0,2408.9,72.624]
[1751400489387,3.24712273,2409.0,2408.9,87.312]
[1751400489388,8.94582273,2409.0,2408.9,87.312]
[1751400489582,8.94582273,2409.0,2408.9,87.311]
[1751400489775,2.07572,2408.5,2408.2,59.793]
[1751400489981,0.83031,2408.4,2408.3,40.338]
[1751400490182,2.14311,2408.4,2408.3,40.338]
[1751400490382,0.83034,2408.3,2408.2,59.793]
[1751400490583,0.83034,2408.3,2408.2,100.127]
[1751400490783,0.83034,2408.3,2408.2,100.126]
[1751400491185,0.83034,2408.3,2408.2,72.619]
[1751400491482,0.83034,2408.3,2408.2,100.123]
[1751400491688,0.83034,2408.3,2408.2,100.122]
[1751400491988,0.83034,2408.3,2408.2,59.793]
[1751400492287,0.83034,2408.3,2408.2,100.119]
[1751400492484,0.83034,2408.3,2407.9,0.668]
[1751400492485,0.83044,2408.0,2407.9,0.668]
[1751400492680,2.07603,2408.1,2407.7,59.796]
[1751400492884,0.83051,2407.8,2407.7,59.796]
[1751400493086,0.83051,2407.8,2407.7,100.95255]
[1751400493283,0.83051,2407.8,2407.7,102.31875]
[1751400493685,0.83051,2407.8,2407.7,102.15]
[1751400494486,0.8305,2407.9,2407.7,102.98054]
[1751400494681,2.07596,2408.2,2407.8,0.8305]
[1751400494886,4.13592,2408.4,2407.9,28.32648]
[1751400495085,0.83042,2408.1,2407.9,34.26070118]
[1751400495291,3.47839,2408.4,2407.9,27.496]
[1751400495292,0.83044,2408.0,2407.9,27.496]
[1751400495494,0.83044,2408.0,2407.9,40.314]
[1751400498588,0.83051,2407.8,2407.7,60.4578]
[1751400498796,0.83051,2407.8,2407.7,100.7578]
[1751400499592,0.83051,2407.8,2407.7,60.4578]
[1751400500193,0.83051,2407.8,2407.7,100.7528]
[1751400500396,0.83051,2407.8,2407.7,102.1494]
[1751400500597,0.83051,2407.8,2407.7,102.97993]
[1751400500792,2.07603,2408.1,2407.7,102.97993]
[1751400500793,0.8305,2407.9,2407.8,0.83051]
[1751400500997,0.83047,2408.0,2407.8,6.76470118]
[1751400501193,2.07586,2408.3,2407.9,30.36805]
[1751400501499,0.83042,2408.1,2408.0,0.83044]
[1751400501692,0.83042,2408.1,2408.0,2.22704]
[1751400501898,0.83042,2408.1,2408.0,1.3966]
[1751400502900,0.83044,2408.0,2407.9,28.141]
[1751400505003,0.83044,2408.0,2407.9,0.679]
[1751400505299,0.83044,2408.0,2407.9,40.952]
[1751400507804,0.4791,2408.1,2407.9,41.78246]
[1751400508103,1.30953,2408.1,2408.0,0.83044]
[1751400508317,1.30953,2408.1,2408.0,1.433]
[1751400508615,1.30953,2408.1,2408.0,2.26344]
[1751400508814,0.4791,2408.1,2408.0,2.26344]
[1751400509012,1.30951,2408.1,2408.0,2.26344]
[1751400510616,1.30951,2408.1,2408.0,1.433]
[1751400511110,1.30951,2408.1,2408.0,2.26344]
[1751400511321,0.4791,2408.1,2408.0,7.26344]
[1751400511807,2.07517,2409.1,2408.6,0.83022]
[1751400512007,1.92903181,2409.0,2408.7,40.8357]
[1751400512213,1.4204,2409.0,2408.8,1.4447]
[1751400512412,1.4204,2409.0,2408.9,28.24013]
[1751400512612,2.51923976,2409.0,2408.9,28.24013]
[1751400513308,3.34933976,2409.0,2408.9,28.24013]
[1751400513508,3.34933976,2409.0,2408.9,40.166]
[1751400513712,2.2505,2409.0,2408.8,0.83014]
[1751400514019,2.2505,2409.0,2408.9,40.156]
[1751400514313,0.8302,2408.7,2408.6,59.806]
[1751400514514,0.8302,2408.7,2408.6,99.959]
[1751400514708,5.8302,2408.7,2408.6,76.844]
[1751400515013,2.07569,2408.5,2408.3,12.757]
[1751400515214,0.83031,2408.4,2408.3,12.757]
[1751400515414,2.15471,2408.4,2408.3,40.15]
[1751400518611,0.83037,2408.2,2408.0,0.7129]
[1751400518814,0.83041,2408.1,2408.0,0.7129]
[1751400519021,0.83041,2408.1,2408.0,41.67734]
[1751400519816,0.83041,2408.1,2408.0,40.8459]
[1751400520018,2.07589,2408.3,2407.9,59.799]
[1751400520019,0.83044,2408.0,2407.9,59.799]
[1751400520225,0.83044,2408.0,2407.9,99.928]
[1751400520518,0.83044,2408.0,2407.9,100.75848]
[1751400521220,0.83044,2408.0,2407.9,99.928]
[1751400521825,0.83044,2408.0,2407.9,100.75848]
[1751400522119,0.83044,2408.0,2407.9,99.928]
[1751400525818,0.83044,2408.0,2407.9,72.557]
[1751400526021,4.15258,2407.8,2407.2,4.13431337]
[1751400526320,0.83065,2407.4,2407.3,27.343]
[1751400526525,0.83075,2407.1,2407.0,14.1184]
[1751400526822,2.07666,2407.4,2407.0,41.4594]
[1751400527125,0.83075,2407.2,2407.1,0.83075]
[1751400527322,0.83075,2407.2,2407.1,2.23775]
[1751400527522,0.8307,2407.3,2407.1,2.23775]
[1751400527719,2.74857,2407.9,2407.2,27.339]
[1751400527925,0.6723,2407.9,2407.5,0.83059]
[1751400528126,0.83057,2407.7,2407.6,40.093]
[1751400528425,0.83057,2407.7,2407.6,42.35368]
[1751400528619,0.83057,2407.7,2407.6,41.5231]
[1751400530022,1.93155825,2407.7,2407.6,41.5231]
[1751400530723,1.93155825,2407.7,2407.6,42.35368]
[1751400530922,0.83057,2407.7,2407.6,42.35368]
[1751400531425,0.83057,2407.7,2407.6,41.5231]
[1751400532029,0.83057,2407.7,2407.6,42.8739]
[1751400532329,2.07652,2407.6,2407.4,12.76]
[1751400532530,0.83075,2407.1,2407.0,0.83076]
[1751400532725,0.83075,2407.1,2407.0,2.18159]
[1751400532920,0.83072,2407.3,2407.0,41.4268]
[1751400533120,0.83067,2407.4,2407.3,0.83069]
[1751400533336,0.83067,2407.4,2407.3,28.14569]
[1751400533725,2.07638,2407.7,2407.4,0.83064]
[1751400533935,9.42934118,2407.8,2407.4,0.83064]
[1751400533936,0.83064,2407.5,2407.4,0.83064]
[1751400534230,0.83064,2407.5,2407.4,28.14364]
[1751400534626,0.83061,2407.6,2407.5,0.83061]
[1751400535032,0.83061,2407.6,2407.5,1.4429]
[1751400535731,0.83061,2407.6,2407.5,2.27352]
[1751400536032,0.83061,2407.6,2407.5,1.4429]
[1751400536533,0.83061,2407.6,2407.5,2.27352]
[1751400536937,0.83061,2407.6,2407.5,1.4429]
[1751400537233,0.83061,2407.6,2407.5,2.27352]
[1751400537632,0.83061,2407.6,2407.5,1.4429]
[1751400538034,0.83061,2407.6,2407.5,2.27352]
[1751400538733,0.1799,2407.7,2407.6,0.83056]
[1751400538936,0.1799,2407.7,2407.6,40.88256]
[1751400539136,0.1799,2407.7,2407.6,41.58006]
[1751400539433,1.01045,2407.7,2407.6,41.58006]
[1751400539635,0.1799,2407.7,2407.6,41.58006]
[1751400540033,1.01045,2407.7,2407.6,41.58006]
[1751400540428,0.1799,2407.7,2407.6,41.58006]
[1751400542732,1.01045,2407.7,2407.6,0.6975]
[1751400543039,0.83064,2407.5,2407.4,0.83062]
[1751400543336,0.83064,2407.5,2407.4,40.79262]
[1751400544138,0.83064,2407.5,2407.4,12.691]
[1751400544341,0.83064,2407.5,2407.4,0.83065]
[1751400544639,0.83069,2407.4,2407.3,13.52168]
[1751400544835,0.83069,2407.4,2407.3,39.954]
[1751400545044,0.83069,2407.4,2407.3,40.78469]
[1751400545439,0.83069,2407.4,2407.3,12.691]
[1751400545636,0.83069,2407.4,2407.3,40.78469]
[1751400546338,0.83069,2407.4,2407.3,39.954]
[1751400546539,0.83069,2407.4,2407.3,12.691]
[1751400546834,0.83069,2407.4,2407.3,39.949]
[1751400547039,2.07674,2407.3,2406.3,10.06853455]
[1751400547230,2.07674,2407.3,2406.5,0.7215]
[1751400547231,0.83091,2406.7,2406.5,0.7215]
[1751400547434,0.83088,2406.8,2406.7,0.83086]
[1751400547636,0.83079,2407.0,2406.9,0.8308]
[1751400547843,0.83079,2407.0,2406.9,28.0818]
[1751400548440,2.07691,2407.1,2406.5,0.7215]
[1751400548638,2.07726,2406.7,2406.5,27.245]
[1751400548843,0.83093,2406.6,2406.5,27.245]
[1751400549045,0.83103,2406.3,2406.2,12.692]
[1751400549348,0.83107,2406.2,2406.1,14.22007]
[1751400549644,0.83107,2406.2,2406.1,40.632]
[1751400549846,2.07734,2406.6,2406.3,0.83102]
[1751400550147,0.83107,2406.2,2406.1,2.0678]
[1751400550345,0.83107,2406.2,2406.1,27.934]
[1751400550844,0.83107,2406.2,2406.1,28.7671]
[1751400551043,1.4585,2406.5,2406.1,27.936]
[1751400551346,0.83091,2406.7,2406.6,0.83089]
[1751400552935,0.83086,2406.9,2406.8,0.83084]
[1751400553742,0.83081,2407.0,2406.9,0.83079]
[1751400555051,0.83076,2407.2,2407.1,0.83073]
[1751400555345,1.92601852,2407.2,2407.1,27.221]
[1751400556152,0.83072,2407.2,2407.1,28.05175]
[1751400556347,2.8297,2407.4,2407.1,28.05175]
[1751400556348,0.83071,2407.3,2407.2,0.83069]
[1751400556650,0.83072,2407.2,2407.1,27.221]
[1751400557452,0.83072,2407.2,2407.1,28.05175]
[1751400559356,1.4197,2407.2,2407.1,28.05175]
[1751400561653,2.25042,2407.2,2407.1,40.72175]
[1751400563057,1.4197,2407.2,2407.1,40.72175]
[1751400564155,1.5994,2407.2,2407.1,40.72175]
[1751400564753,0.8306,2407.6,2407.5,0.8306]
[1751400564953,2.73781,2407.9,2407.6,0.83058]
[1751400564954,0.83057,2407.7,2407.6,0.83058]
[1751400565151,0.83054,2407.8,2407.5,27.183]
[1751400565346,0.83056,2407.7,2407.6,0.83057]
[1751400565747,0.83058,2407.6,2407.5,28.01359]
[1751400566258,0.83056,2407.7,2407.6,0.83056]
[1751400566655,0.83053,2407.8,2407.7,0.83052]
[1751400566856,0.83049,2407.9,2407.8,0.83048]
[1751400567462,0.83047,2408.0,2407.9,0.83047]
[1751400567654,1.92611035,2408.0,2407.9,0.83047]
[1751400567856,1.50003,2408.1,2408.0,0.83044]
[1751400568051,0.83045,2408.0,2407.9,0.83045]
[1751400568262,0.83043,2408.1,2407.9,0.83045]
[1751400569057,0.83043,2408.1,2408.0,0.83044]
[1751400569361,0.8304,2408.2,2407.8,2.1548]
[1751400569557,0.8304,2408.2,2408.0,0.83043]
[1751400569854,0.8304,2408.2,2408.0,27.99043]
[1751400570060,0.8304,2408.2,2408.1,0.83041]
[1751400570259,0.83038,2408.2,2408.0,27.16]
[1751400570459,1.09583001,2408.2,2408.1,0.83041]
[1751400571864,0.83034,2408.3,2408.2,0.83034]
[1751400572061,1.92429617,2408.3,2408.1,0.83041]
[1751400572264,0.83034,2408.3,2408.2,0.83037]
[1751400572558,1.92424646,2408.3,2408.2,0.83037]
[1751400572960,0.83037,2408.2,2408.1,0.83039]
[1751400573163,0.83036,2408.3,2408.0,27.16]
[1751400573561,0.83036,2408.3,2408.1,0.83039]
[1751400573861,1.49993,2408.4,2408.2,0.83035]
[1751400574061,0.83032,2408.4,2408.3,0.83034]
[1751400574260,1.09388985,2408.4,2408.3,0.83034]
[1751400574562,0.83029,2408.5,2408.3,0.83034]
[1751400574964,0.83031,2408.4,2408.3,0.83034]
[1751400575266,0.83031,2408.4,2408.3,27.95634]
[1751400575862,0.83031,2408.4,2408.3,27.126]
[1751400576256,41.52106,2408.1,2404.4,373.866]
[1751400576459,2.0781,2405.7,2403.9,1.3399]
[1751400576661,5.93422118,2405.1,2404.5,1.3399]
[1751400577166,5.93422118,2404.8,2404.5,1.3399]
[1751400577567,0.83162,2404.6,2404.5,1.3399]
[1751400578361,0.83172,2404.3,2404.2,12.622]
[1751400578865,5.93422118,2404.5,2403.8,72.44]
[1751400578866,0.83186,2403.9,2403.8,72.44]
[1751400579165,0.83186,2403.9,2403.8,118.24]
[1751400579355,0.83186,2404.0,2403.8,118.24]
[1751400579554,0.83186,2403.9,2403.8,113.24]
[1751400579964,0.83186,2403.9,2403.8,118.24]
[1751400580664,0.83186,2403.9,2403.8,77.44]
[1751400580968,0.83186,2403.9,2403.8,78.8032]
[1751400583664,0.83186,2403.9,2403.8,73.8032]
[1751400584574,0.83186,2403.9,2403.8,72.44]
[1751400584965,0.83186,2403.9,2403.8,12.622]
[1751400587162,11.77859046,2403.9,2403.1,12.635]
[1751400587369,1.4505,2403.8,2402.8,1.3699]
[1751400587766,2.07994,2403.6,2402.9,0.83219]
[1751400587967,0.83208,2403.3,2403.0,27.97317]
[1751400588274,0.83208,2403.3,2403.1,1.4119]
[1751400588665,0.8321,2403.2,2403.1,1.4119]
[1751400590669,2.07993,2403.6,2403.1,1.4119]
[1751400590870,0.8321,2403.2,2403.1,1.4119]
[1751400591772,0.83214,2403.1,2403.0,27.146]
[1751400592168,0.83217,2403.0,2402.9,27.145]
[1751400592472,0.83221,2402.9,2402.8,1.4604]
[1751400592670,0.83221,2402.9,2402.8,29.43764]
[1751400592866,0.83217,2403.0,2402.9,0.83219]
[1751400593069,2.08018,2403.3,2402.9,2.2926]
[1751400593272,0.83217,2403.0,2402.9,2.2926]
[1751400593474,0.83217,2403.0,2402.9,1.4604]
[1751400594775,0.83217,2403.0,2402.9,2.29261]
[1751400595372,0.83217,2403.0,2402.9,28.6124]
[1751400595674,0.83217,2403.0,2402.9,27.152]
[1751400596673,2.08009,2403.4,2402.9,27.152]
[1751400596873,0.83217,2403.0,2402.9,27.152]
[1751400597074,0.83217,2403.0,2402.9,28.5549]
[1751400598980,0.83216,2403.1,2402.9,28.5549]
[1751400599184,0.83214,2403.1,2403.0,0.83216]
[1751400599378,0.83214,2403.1,2403.0,2.23506]
[1751400599584,0.83214,2403.1,2403.0,1.4029]
[1751400601474,6.77859046,2403.6,2403.0,1.4029]
[1751400601680,1.49012417,2403.5,2403.4,0.83203]
[1751400601878,1.49012417,2403.5,2403.4,40.62603]
[1751400602074,1.49012417,2403.5,2403.4,44.794]
[1751400602374,0.83178,2404.2,2404.0,0.83181]
[1751400602577,4.48785085,2404.3,2403.9,27.15]
[1751400602783,0.83179,2404.1,2404.0,12.644]
[1751400604383,3.24031085,2404.1,2404.0,12.644]
[1751400604583,2.40852085,2404.1,2404.0,12.644]
[1751400604884,3.24030085,2404.2,2404.0,14.87763]
[1751400605280,3.25547581,2404.3,2404.0,14.87763]
[1751400605584,3.25547581,2404.3,2404.0,14.0458]
[1751400605585,0.83179,2404.1,2404.0,14.0458]
[1751400605983,0.83179,2404.1,2404.0,39.789]
[1751400606387,0.83179,2404.1,2404.0,33.54913794]
[1751400607184,4.08126565,2404.3,2404.0,34.38093794]
[1751400607185,0.83177,2404.2,2404.0,34.38093794]
[1751400607388,4.09138037,2404.2,2404.1,1.412]
[1751400608384,0.83177,2404.2,2404.1,1.412]
[1751400610394,4.09429355,2404.2,2404.1,1.412]
[1751400611196,0.83176,2404.2,2404.1,2.24379]
[1751400611389,4.09427355,2404.3,2404.1,1.412]
[1751400611687,3.26253355,2404.3,2404.2,27.137]
[1751400611893,4.09425355,2404.3,2404.2,27.137]
[1751400613694,0.83172,2404.3,2404.2,27.137]
[1751400613895,4.09425355,2404.3,2404.2,27.137]
[1751400614291,5.49103739,2404.3,2404.2,27.137]
[1751400614892,4.65931739,2404.3,2404.2,27.137]
[1751400615395,2.22850384,2404.3,2404.2,27.137]
[1751400618791,1.39678384,2404.3,2404.2,27.137]
[1751400619103,3.84246688,2404.3,2404.2,27.137]
[1751400619401,2.22850384,2404.3,2404.2,27.137]
[1751400619701,1.39678384,2404.3,2404.2,27.96876]
[1751400620097,3.84246688,2404.3,2404.2,27.96876]
[1751400620402,1.39678384,2404.3,2404.2,87.87176]
[1751400621198,2.22850384,2404.3,2404.2,87.04]
[1751400621505,1.39678384,2404.3,2404.2,90.87176]
[1751400622302,2.44568304,2404.5,2404.4,0.83169]
[1751400622505,3.79572893,2404.5,2404.4,33.90434176]
[1751400623006,4.62737893,2404.5,2404.4,33.90434176]
[1751400623201,2.18169589,2404.5,2404.4,33.90434176]
[1751400623403,1.35004589,2404.5,2404.4,33.90434176]
[1751400624911,1.35004589,2404.5,2404.4,27.94969]
[1751400625804,2.18169589,2404.5,2404.4,27.118]
[1751400626409,2.18169589,2404.5,2404.4,27.94969]
[1751400627713,1.35004589,2404.5,2404.4,27.94969]
[1751400629912,2.44568304,2404.9,2404.8,0.83155]
[1751400630115,2.44568304,2404.9,2404.8,40.55855]
[1751400630318,2.44568304,2405.0,2404.9,0.83151]
[1751400630517,0.41292594,2405.1,2404.9,0.83151]
[1751400630718,4.54748304,2405.2,2404.9,0.83151]
[1751400630913,0.83165,2404.5,2403.0,9.814]
[1751400631115,2.07928,2404.4,2402.9,12.625]
[1751400631318,5.95465176,2404.5,2403.0,27.098]
[1751400631319,5.95465176,2403.8,2403.0,27.098]
[1751400631616,1.3205,2403.7,2403.1,5.95465176]
[1751400631818,0.83198,2403.6,2403.2,1.3533]
[1751400632113,8.03422176,2404.0,2403.3,27.096]
[1751400632320,2.07916,2404.5,2403.4,5.95465176]
[1751400632515,0.83196,2403.6,2403.5,12.625]
[1751400639525,2.0797,2403.9,2403.5,12.625]
[1751400639726,0.83195,2403.7,2403.5,12.625]
[1751400639927,0.6842,2404.2,2403.6,33.04365176]
[1751400640221,0.83178,2404.2,2403.6,34.37695176]
[1751400640423,0.83178,2404.2,2403.9,0.83185]
[1751400640622,0.83178,2404.2,2403.6,34.37695176]
[1751400640623,1.3812,2404.4,2404.0,27.087]
[1751400640934,2.44568304,2404.7,2404.2,5.95465176]
[1751400641230,2.44568304,2404.8,2404.6,0.83161]
[1751400641421,4.65842304,2404.9,2404.7,39.696]
[1751400641624,3.27720304,2404.9,2404.7,39.696]
[1751400642032,1.23994119,2404.8,2404.7,39.696]
[1751400642627,2.07149119,2404.8,2404.7,39.696]
[1751400645034,2.07149119,2404.8,2404.7,27.081]
[1751400646237,1.23994119,2404.8,2404.7,27.081]
[1751400646534,2.07149119,2404.8,2404.7,27.081]
[1751400646736,1.23994119,2404.8,2404.7,27.91258]
[1751400647133,1.23994119,2404.8,2404.7,29.35588]
[1751400647734,1.23994119,2404.8,2404.7,30.05228]
[1751400649136,0.83143,2405.2,2405.0,0.83147]
[1751400649435,0.83143,2405.2,2405.1,27.067]
[1751400649732,2.06999193,2405.2,2405.1,27.067]
[1751400649932,1.23858193,2405.2,2405.1,27.067]
[1751400650325,2.06999193,2405.2,2405.1,27.067]
[1751400650732,1.23858193,2405.2,2405.1,27.067]
[1751400651137,1.23858193,2405.2,2405.1,27.89845]
[1751400651334,2.25837,2405.4,2405.2,0.83141]
[1751400651535,1.23844792,2405.3,2405.2,13.43641]
[1751400651733,2.06982792,2405.3,2405.2,12.605]
[1751400652128,1.23844792,2405.3,2405.2,12.605]
[1751400652534,1.23844792,2405.3,2405.2,13.43641]
[1751400652738,0.83136,2405.4,2405.2,13.43641]
[1751400652934,0.83133,2405.5,2405.3,27.89136]
[1751400653336,5.0,2405.5,2404.8,0.7232]
[1751400653536,0.83151,2404.9,2404.8,0.7232]
[1751400653838,0.83151,2404.9,2404.8,27.7792]
[1751400654230,0.83146,2405.1,2404.9,0.8315]
[1751400654436,2.07836,2405.4,2404.8,29.1978]
[1751400654635,0.83145,2405.1,2404.9,0.83149]
[1751400654836,0.83145,2405.1,2404.9,2.15829]
[1751400656345,2.07845,2405.3,2404.9,1.3268]
[1751400656544,0.83146,2405.1,2404.9,2.15829]
[1751400657744,0.83148,2405.0,2404.9,1.3268]
[1751400658648,0.83147,2405.1,2404.9,2.15831]
[1751400658943,0.83147,2405.1,2405.0,27.047]
[1751400660747,0.83148,2405.0,2404.9,1.3268]
[1751400660948,2.07845,2405.3,2404.9,41.80029]
[1751400660949,0.83147,2405.1,2404.9,41.80029]
[1751400661442,0.83145,2405.1,2405.0,0.83146]
[1751400661642,0.83145,2405.1,2405.0,1.3858]
[1751400662246,0.83148,2405.0,2404.9,39.642]
[1751400662545,0.83147,2405.1,2404.9,40.47351]
[1751400662741,0.83147,2405.1,2405.0,0.83148]
[1751400663146,0.83147,2405.1,2404.9,41.85929]
[1751400663347,0.83148,2405.0,2404.9,41.0278]
[1751400663549,0.83147,2405.1,2404.9,41.85929]
[1751400663748,0.83147,2405.1,2404.9,41.0278]
[1751400664048,0.83147,2405.1,2405.0,0.83148]
[1751400664243,0.83144,2405.2,2405.0,0.83148]
[1751400664445,0.83144,2405.2,2405.1,27.029]
[1751400665153,0.83144,2405.2,2405.1,27.86045]
[1751400665648,0.83144,2405.2,2405.1,27.029]
[1751400666547,0.8314,2405.3,2405.1,27.86044]
[1751400666746,0.83136,2405.4,2405.1,27.029]
[1751400666949,0.41264719,2405.5,2405.3,0.83138]
[1751400667247,0.83131,2405.5,2405.4,27.85334]
[1751400667443,0.83131,2405.5,2405.4,27.022]
[1751400667649,0.83129,2405.6,2405.4,27.85334]
[1751400667948,0.83127,2405.6,2405.5,12.573]
[1751400668142,0.83126,2405.7,2405.5,13.40431]
[1751400668344,0.83126,2405.7,2405.6,27.019]
[1751400669448,0.83134,2405.4,2405.2,1.5784]
[1751400669648,0.83134,2405.4,2405.3,39.588]
[1751400670145,2.22724,2405.4,2405.3,39.588]
[1751400671654,0.83141,2405.2,2405.1,12.572]
[1751400671953,0.83141,2405.2,2405.1,40.41645]
[1751400672451,0.83141,2405.2,2405.1,39.585]
[1751400672646,0.83141,2405.2,2405.1,40.40944]
[1751400673452,0.83141,2405.2,2405.1,39.578]
[1751400676356,0.83141,2405.2,2405.1,39.573]
[1751400676553,2.07854,2405.2,2404.6,0.7447]
[1751400676753,0.83154,2404.9,2404.8,0.83154]
[1751400677153,0.83151,2405.0,2404.7,39.568]
[1751400677452,0.83151,2405.0,2404.8,2.24632]
[1751400677655,0.83151,2405.0,2404.9,26.994]
[1751400677851,0.83151,2405.0,2404.9,28.4088]
[1751400678754,2.11514126,2405.0,2404.9,1.4148]
[1751400678956,2.11514126,2405.0,2404.9,40.9788]
[1751400680053,2.11514126,2405.0,2404.9,41.81031]
[1751400680252,2.11514126,2405.0,2404.9,40.9788]
[1751400682657,2.11514126,2405.0,2404.9,39.558]
[1751400682658,2.11511126,2405.0,2404.9,39.558]
[1751400683660,0.83155,2404.8,2404.7,0.7172]
[1751400683854,0.83155,2404.8,2404.7,40.2682]
[1751400684364,0.83155,2404.8,2404.7,41.09978]
[1751400684658,0.83155,2404.8,2404.7,40.2682]